fUST/lending_fUST_20240814
["ID","MTS","AMOUNT","RATE_DAILY","PERIOD"]
[334879616,1723625446530,-500.0,0.00013972,2]
[334879617,1723625446539,-528.18,0.00013972,2]
[334879619,1723625446548,-500.0,0.00013972,2]
[334879621,1723625446558,-500.0,0.00013972,2]
[334879623,1723625446567,-500.0,0.00013972,2]
[334879625,1723625446577,-500.0,0.00013972,2]
[334879627,1723625446586,-500.0,0.00013972,2]
[334879629,1723625446595,-500.0,0.00013972,2]
[334879631,1723625446604,-500.0,0.00013972,2]
[334879633,1723625446614,-500.0,0.00013972,2]
[334879634,1723625446624,-302.87937675,0.00013972,2]
[334879635,1723625446634,-500.0,0.00013972,2]
[334879637,1723625446644,-500.0,0.00013972,2]
[334879639,1723625446653,-1250.84,0.00013972,2]
[334879641,1723625446662,-516.37334126,0.00013972,2]
[334879643,1723625446672,-493.462411,0.00013972,2]
[334879645,1723625446681,-658.06,0.00013972,2]
[334879646,1723625446691,-500.0,0.00013972,2]
[334879648,1723625446700,-573.12,0.00013972,2]
[334879650,1723625446709,-884.74,0.00013972,2]
[334879651,1723625446718,-500.0,0.00013972,2]
[334879653,1723625446728,-545.81489573,0.00013972,2]
[334879655,1723625446737,-500.0,0.00013972,2]
[334879657,1723625446746,-500.0,0.00013972,2]
[334879659,1723625446755,-500.0,0.00013972,2]
[334879660,1723625446765,-152.52161224,0.00013972,2]
[334879662,1723625446774,-500.0,0.00013972,2]
[334879664,1723625446783,-1481.66,0.00013972,2]
[334879665,1723625446792,-719.35,0.00013972,2]
[334879667,1723625446801,-500.0,0.00013972,2]
[334879669,1723625446811,-500.0,0.00013972,2]
[334879671,1723625446821,-602.16,0.00013972,2]
[334879672,1723625446830,-506.48910942,0.00013972,2]
[334879673,1723625446839,-500.0,0.00013972,2]
[334879674,1723625446848,-500.0,0.00013972,2]
[334879675,1723625446858,-635.15,0.00013972,2]
[334879676,1723625446867,-500.0,0.00013972,2]
[334879677,1723625446876,-500.0,0.00013972,2]
[334879678,1723625446889,-522.29,0.00013972,2]
[334879679,1723625446898,-545.04631556,0.00013972,2]
[334879680,1723625446907,-500.0,0.00013972,2]
[334879681,1723625446916,-1736.64,0.00013972,2]
[334879682,1723625446925,-500.0,0.00013972,2]
[334879683,1723625446935,-1820.38,0.00013972,2]
[334879684,1723625446944,-588.94,0.00013972,2]
[334879685,1723625446953,-500.0,0.00013972,2]
[334879686,1723625446962,-555.00436429,0.00013972,2]
[334879687,1723625446972,-500.0,0.00013972,2]
[334879688,1723625446981,-824.25,0.00013972,2]
[334879689,1723625446990,-12651.69,0.00013972,2]
[334879690,1723625446999,-500.0,0.00013972,2]
[334879691,1723625447009,-520.27175887,0.00013972,2]
[334879692,1723625447019,-500.0,0.00013972,2]
[334879693,1723625447032,-500.0,0.00013972,2]
[334879694,1723625447041,-509.22499104,0.00013972,2]
[334879695,1723625447051,-500.0,0.00013972,2]
[334879696,1723625447060,-500.0,0.00013972,2]
[334879697,1723625447070,-664.22,0.00013972,2]
[334879698,1723625447079,-2776.93,0.00013972,2]
[334879699,1723625447088,-602.8282725,0.00013972,2]
[334879700,1723625447098,-511.39849435,0.00013972,2]
[334879701,1723625447108,-699.57,0.00013972,2]
[334879702,1723625447226,-500.0,0.00013972,2]
[334879703,1723625447235,-507.1729502,0.00013972,2]
[334879704,1723625447246,-512.85045525,0.00013972,2]
[334879705,1723625447255,-508.02780981,0.00013972,2]
[334879706,1723625447265,-486.00879072,0.00013972,2]
[334879707,1723625447273,-767.38,0.00013972,2]
[334879708,1723625447283,-824.79,0.00013972,2]
[334879709,1723625447292,-593.38,0.00013972,2]
[334879710,1723625447301,-3983.84,0.00013972,2]
[334879711,1723625447311,-510.9917078,0.00013972,2]
[334879712,1723625447320,-942.92,0.00013972,2]
[334879713,1723625447329,-500.0,0.00013972,2]
[334879714,1723625447343,-433.65520934,0.00013972,2]
[334879715,1723625447353,-500.0,0.00013972,2]
[334879716,1723625447362,-980.93,0.00013972,2]
[334879717,1723625447371,-508.39238803,0.00013972,2]
[334879718,1723625447381,-500.0,0.00013972,2]
[334879719,1723625447390,-894.79,0.00013972,2]
[334879720,1723625447400,-507.05018205,0.00013972,2]
[334879721,1723625447409,-500.0,0.00013972,2]
[334879722,1723625447418,-500.0,0.00013972,2]
[334879723,1723625447427,-712.48,0.00013972,2]
[334879724,1723625447438,-372.16752522,0.00013972,2]
[334879725,1723625447447,-500.0,0.00013972,2]
[334879726,1723625447457,-550.01309155,0.00013972,2]
[334879727,1723625447467,-444.59818979,0.00013972,2]
[334879728,1723625447478,-507.92007009,0.00013972,2]
[334879729,1723625447488,-578.20529404,0.00013972,2]
[334879730,1723625447500,-500.0,0.00013972,2]
[334879731,1723625447511,-500.0,0.00013972,2]
[334879732,1723625447521,-4554.32,0.00013972,2]
[334879733,1723625447531,-516.87368999,0.00013972,2]
[334879734,1723625447542,-500.0,0.00013972,2]
[334879735,1723625447551,-1000.0,0.00014,14]
[334879736,1723625447561,-150.112236,0.00014,2]
[334879737,1723625447570,-2528.61,0.00014,2]
[334879738,1723625447579,-464.99068154,0.00014,2]
[334879739,1723625448179,42392.12136225,7.9e-05,2]
[334879740,1723625586965,300.0,7.875e-05,2]
[334879741,1723625603557,300.0,7.875e-05,2]
[334879742,1723625617608,1718.91670259,7.9e-05,2]
[334879743,1723625677937,1500.0,7.9e-05,2]
[334879744,1723625708162,810.98237385,7.9e-05,2]
[334879745,1723625708986,205.44316841,7.9e-05,2]
[334879746,1723625812145,250.0,7.004e-05,2]
[334879747,1723625812384,250.0,7.023e-05,2]
[334879748,1723625812582,250.0,7.042e-05,2]
[334879749,1723625812794,250.0,7.062e-05,2]
[334879750,1723625813196,250.0,7.081e-05,2]
[334879751,1723625813424,250.0,7.1e-05,2]
[334879752,1723625813646,250.0,7.119e-05,2]
[334879753,1723625813869,250.0,7.138e-05,2]
[334879754,1723625814071,250.0,7.158e-05,2]
[334879755,1723625814297,250.0,7.177e-05,2]
[334879756,1723625814499,250.0,7.196e-05,2]
[334879757,1723625814732,250.0,7.215e-05,2]
[334879758,1723625814960,250.0,7.234e-05,2]
[334879759,1723625815168,250.0,7.254e-05,2]
[334879760,1723625815381,250.0,7.273e-05,2]
[334879761,1723625815604,250.0,7.292e-05,2]
[334879762,1723625815812,250.0,7.311e-05,2]
[334879763,1723625816012,250.0,7.33e-05,2]
[334879764,1723625816389,250.0,7.35e-05,2]
[334879765,1723625816446,250.0,7.369e-05,2]
[334879766,1723625825952,190.25739912,7.9e-05,2]
[334879767,1723625883218,543.73594479,7.9e-05,2]
[334879768,1723625894799,154.76012181,7.9e-05,2]
[334879770,1723625946037,156.98597021,7.9e-05,2]
[334879771,1723626070480,1612.67783737,7.9e-05,2]
[334879772,1723626130385,24900.0,7.397e-05,2]
[334879773,1723626220245,9654.55565372,7.9e-05,2]
[334879774,1723626231120,154.98790162,7.9e-05,2]
[334879775,1723626295443,161.119956,6.986e-05,2]
[334879776,1723626356465,195.500502,6.932e-05,2]
[334879777,1723626356657,195.500502,6.95e-05,2]
[334879778,1723626356867,195.500502,6.967e-05,2]
[334879779,1723626367087,600.0,7.848e-05,2]
[334879780,1723626383626,223.38199524,7.848e-05,2]
[334879781,1723626388281,2711.31124135,7.9e-05,2]
[334879782,1723626391639,-300.0,7.927e-05,2]
[334879783,1723626391665,-300.0,7.927e-05,2]
[334879784,1723626391691,-809.65861321,7.927e-05,2]
[334879785,1723626391715,-5590.34138679,7.927e-05,2]
[334879786,1723626392169,2141.83182523,7.9e-05,2]
[334879787,1723626403278,378.1668483,7.847e-05,2]
[334879788,1723626421915,378.1668483,7.847e-05,2]
[334879789,1723626440085,1788.23257722,7.847e-05,2]
[334879790,1723626440138,245.65179562,7.847e-05,2]
[334879791,1723626440959,154.76012181,7.9e-05,2]
[334879792,1723626448688,2085.65120647,7.847e-05,2]
[334879793,1723626455960,223.40672649,7.9e-05,2]
[334879794,1723626456930,7010.23526088,7.846e-05,2]
[334879795,1723626467259,933.35147554,7.9e-05,2]
[334879796,1723626475053,7010.23526088,7.846e-05,2]
[334879797,1723626475406,607.9657139,6.983e-05,2]
[334879798,1723626488723,2319.03289557,7.846e-05,2]
[334879799,1723626494251,395.77208411,7.845e-05,2]
[334879800,1723626496540,404.44105083,7.846e-05,2]
[334879801,1723626513098,395.77208411,7.845e-05,2]
[334879802,1723626532911,395.77208411,7.845e-05,2]
[334879803,1723626534104,834.32224871,7.846e-05,2]
[334879804,1723626552042,933.35147554,7.844e-05,2]
[334879805,1723626557783,2752.400989,6.924e-05,2]
[334879806,1723626568694,1422.43549921,7.843e-05,2]
[334879807,1723626568731,408.14520257,7.843e-05,2]
[334879849,1723626632235,-300.0,7.92e-05,2]
[334879852,1723626632244,-300.0,7.92e-05,2]
[334879855,1723626632254,-4210.8852435,7.92e-05,2]
[334879962,1723626638515,-42392.12136225,7.919e-05,2]
[334879963,1723626638526,-4629.35138501,7.92e-05,2]
[334879964,1723626638538,-8840.23662851,7.92e-05,2]
[334879965,1723626638549,-933.35147554,7.921e-05,2]
[334879967,1723626638560,-3389.01214172,7.921e-05,2]
[334879969,1723626638573,-933.35147554,7.921e-05,2]
[334879971,1723626638585,-7010.23526088,7.921e-05,2]
[334879972,1723626638596,-2127.07450646,7.922e-05,2]
[334879973,1723626638606,-55442.34208291,7.922e-05,2]
[334879974,1723626638615,-2281.22061085,7.922e-05,3]
[334879975,1723626638625,-7246.84020541,7.923e-05,2]
[334879976,1723626638635,-1718.91670259,7.923e-05,2]
[334879977,1723626638644,-395.77208411,7.924e-05,2]
[334879978,1723626638654,-810.98237385,7.924e-05,2]
[334879979,1723626638663,-534.58678596,7.924e-05,2]
[334879980,1723626638674,-1500.0,7.926e-05,2]
[334879982,1723626638683,-197.19992737,7.926e-05,2]
[334879983,1723626638692,-154.76012181,7.926e-05,2]
[334879984,1723626638702,-2165.20291982,7.926e-05,2]
[334879985,1723626638711,-1500.0,7.926e-05,2]
[334879986,1723626638721,-256.11712355,7.926e-05,2]
[334879987,1723626638730,-309.67712516,7.926e-05,2]
[334879988,1723626638740,-205.44316841,7.927e-05,2]
[334879989,1723626638749,-202.48088108,7.927e-05,2]
[334879990,1723626638758,-154.76012181,7.927e-05,2]
[334879991,1723626638769,-210.13067206,7.928e-05,2]
[334879992,1723626638780,-154.76012181,7.928e-05,2]
[334879993,1723626638790,-181.65446017,7.928e-05,2]
[334879994,1723626638800,-184.2285852,7.928e-05,2]
[334879995,1723626638809,-155.12435821,7.928e-05,2]
[334879996,1723626638818,-342.47979758,7.928e-05,2]
[334879997,1723626638829,-154.85350941,7.929e-05,2]
[334879998,1723626638840,-9654.55565372,7.929e-05,2]
[334879999,1723626638851,-200.0,7.93e-05,2]
[334880000,1723626638862,-200.0,7.93e-05,2]
[334880001,1723626638873,-249.20854794,7.93e-05,2]
[334880002,1723626638883,-200.0,7.93e-05,2]
[334880003,1723626638892,-200.0,7.93e-05,2]
[334880004,1723626638902,-200.0,7.93e-05,2]
[334880005,1723626638911,-170.07168817,7.93e-05,2]
[334880006,1723626638926,-180.67948358,7.939e-05,2]
[334880007,1723626638935,-156.39605115,7.939e-05,2]
[334880008,1723626638943,-256.16671508,7.939e-05,2]
[334880009,1723626638953,-200.0,7.94e-05,2]
[334880010,1723626638962,-271.93780607,7.958e-05,2]
[334880011,1723626638971,-520.31494712,8.459e-05,2]
[334880012,1723626638979,-301.37434502,8.459e-05,2]
[334880013,1723626638988,-255.10499635,8.462e-05,2]
[334880014,1723626638998,-154.76012181,8.464e-05,2]
[334880015,1723626639007,-420.0,8.712e-05,2]
[334880016,1723626639017,-420.0,8.712e-05,2]
[334880017,1723626639026,-7246.84020537,8.942e-05,2]
[334880018,1723626639037,-601.5809545,9.13e-05,2]
[334880019,1723626639049,-1633.6335926,9.13e-05,2]
[334880020,1723626639059,-543.73594479,9.297e-05,2]
[334880021,1723626639070,-543.73594479,9.297e-05,2]
[334880022,1723626639080,-160.36529473,9.298e-05,2]
[334880023,1723626639091,-601.5809545,9.298e-05,2]
[334880024,1723626639102,-569.27511148,9.298e-05,2]
[334880025,1723626639113,-156.68978589,9.298e-05,2]
[334880026,1723626639123,-154.76012181,9.298e-05,2]
[334880027,1723626639134,-269.17206526,9.298e-05,2]
[334880028,1723626639144,-404.2385044,9.298e-05,2]
[334880029,1723626639154,-154.76012181,9.299e-05,2]
[334880030,1723626639164,-206.49518568,9.299e-05,2]
[334880031,1723626639177,-196.47111262,9.3e-05,2]
[334880032,1723626639186,-400.0,9.3e-05,2]
[334880033,1723626639197,-400.0,9.3e-05,2]
[334880034,1723626639207,-400.0,9.3e-05,2]
[334880035,1723626639218,-200.24982507,9.3e-05,2]
[334880036,1723626639228,-2711.31124135,9.301e-05,2]
[334880037,1723626639238,-396.16869368,9.301e-05,2]
[334880038,1723626639249,-176.04018086,9.302e-05,2]
[334880039,1723626639391,-197.40919598,9.302e-05,2]
[334880040,1723626639402,-636.79545731,9.302e-05,2]
[334880041,1723626639418,-154.76012181,9.302e-05,2]
[334880042,1723626639427,-154.76012181,9.302e-05,2]
[334880043,1723626639439,-155.25377723,9.302e-05,2]
[334880044,1723626639451,-154.76012181,9.302e-05,2]
[334880045,1723626639461,-156.93178488,9.304e-05,2]
[334880046,1723626639471,-157.02043595,9.304e-05,2]
[334880047,1723626639481,-154.76012181,9.304e-05,2]
[334880048,1723626639493,-156.93178488,9.304e-05,2]
[334880049,1723626639503,-2711.31124135,9.304e-05,2]
[334880050,1723626639513,-154.76012181,9.304e-05,2]
[334880051,1723626639522,-1612.67783737,9.305e-05,2]
[334880052,1723626639532,-2141.83182523,9.305e-05,2]
[334880053,1723626639541,-308.08694096,9.305e-05,2]
[334880054,1723626639550,-154.76012181,9.305e-05,2]
[334880055,1723626639559,-180.23607307,9.309e-05,2]
[334880056,1723626639569,-400.0,9.31e-05,2]
[334880057,1723626639579,-809.65861321,9.324e-05,2]
[334880058,1723626639589,-154.95774907,9.325e-05,2]
[334880059,1723626639598,-196.55705646,9.325e-05,2]
[334880060,1723626639611,-154.76012181,9.325e-05,2]
[334880061,1723626639622,-223.40672649,9.504e-05,2]
[334880062,1723626639634,-154.76012181,9.505e-05,2]
[334880063,1723626639645,-208.45077666,9.505e-05,2]
[334880064,1723626639656,-162.56681124,9.507e-05,2]
[334880065,1723626639668,-196.71565749,9.582e-05,2]
[334880066,1723626639680,-587.0,9.583e-05,2]
[334880067,1723626639690,-587.0,9.583e-05,2]
[334880068,1723626639700,-7246.84020537,9.962e-05,2]
[334880069,1723626639709,-661.09964631,0.0001,2]
[334880071,1723626639718,-154.76012181,0.0001,2]
[334880073,1723626639728,-20784.67491515,0.0001,2]
[334880075,1723626639739,-155.58165365,0.0001,2]
[334880077,1723626639749,-823.0,0.00010542,2]
[334880078,1723626639761,-823.0,0.00010542,2]
[334880079,1723626639773,-7246.84020537,0.00010881,2]
[334880080,1723626639783,-2118.0,0.00010959,2]
[334880081,1723626639794,-2406.28,0.00010959,2]
[334880082,1723626639806,-2005.24,0.00010959,2]
[334880083,1723626639816,-1671.03,0.00010959,2]
[334880084,1723626639826,-1392.53,0.00010959,2]
[334880086,1723626639838,-1160.44,0.00010959,2]
[334880088,1723626639849,-987.86,0.00010959,2]
[334880089,1723626639860,-823.22,0.00010959,2]
[334880090,1723626639872,-686.01,0.00010959,2]
[334880091,1723626639882,-571.68,0.00010959,2]
[334880092,1723626639891,-476.4,0.00010959,2]
[334880093,1723626639903,-397.0,0.00010959,2]
[334880094,1723626639913,-330.83,0.00010959,2]
[334880095,1723626639923,-275.69,0.00010959,2]
[334880096,1723626639933,-229.74,0.00010959,2]
[334880098,1723626639945,-191.45,0.00010959,2]
[334880099,1723626639956,-159.55,0.00010959,2]
[334880100,1723626639965,-797.75,0.00010959,2]
[334880101,1723626639975,-403.2357689,0.00010959,2]
[334880102,1723626639985,-1000.0,0.00011,11]
[334880103,1723626639997,-201.86454708,0.00011,2]
[334880105,1723626640006,-728.43490027,0.00011302,2]
[334880106,1723626640016,-600.0,0.00011303,2]
[334880107,1723626640029,-600.0,0.00011303,2]
[334880108,1723626640038,-600.0,0.00011303,2]
[334880109,1723626640050,-600.0,0.00011313,2]
[334880110,1723626640062,-1152.0,0.00011596,2]
[334880111,1723626640072,-1152.0,0.00011596,2]
[334880112,1723626640081,-81541.37354421,0.000119,2]
[334880113,1723626640092,-1900.38300035,0.000119,2]
[334880114,1723626640103,-561830.661966,0.000119,2]
[334880115,1723626640113,-7246.84020537,0.000119,2]
[334880116,1723626640122,-4000.0,0.00012,12]
[334880117,1723626640133,-320.11477808,0.00012754,2]
[334880118,1723626640144,-1613.0,0.00012755,2]
[334880119,1723626640154,-605.0,0.00012755,2]
[334880120,1723626640163,-183.652839,0.00012823,2]
[334880121,1723626640176,-157.338666,0.00012823,2]
[334880122,1723626640187,-167.603257,0.00012823,2]
[334880123,1723626640199,-480.514814,0.00012823,2]
[334880124,1723626640209,-572.329449,0.00012823,2]
[334880125,1723626640220,-1000.0,0.00012876,2]
[334880127,1723626640229,-1000.0,0.00012904,2]
[334880128,1723626640240,-1000.0,0.00012931,2]
[334880129,1723626640250,-493.03932546,0.0001295,2]
[334880130,1723626640260,-1000.0,0.00012958,2]
[334880131,1723626640270,-480.514814,0.00012983,2]
[334880133,1723626640279,-572.329449,0.00012983,2]
[334880135,1723626640288,-500.0,0.00012986,2]
[334880137,1723626640299,-154.76012181,0.00013,2]
[334880139,1723626640310,-9435.70289252,0.00013,2]
[334880141,1723626640320,-1000.0,0.00013,13]
[334880143,1723626640330,-150.112236,0.00013,2]
[334880145,1723626640339,-500.0,0.00013,2]
[334880147,1723626640349,-14788.99784373,0.00013,2]
[334880149,1723626640358,-150.112233,0.00013,2]
[334880151,1723626640368,-157.338666,0.00013037,2]
[334880153,1723626640378,-150.112233,0.000131,2]
[334880155,1723626640389,-150.112233,0.000131,2]
[334880157,1723626640401,-183.652839,0.00013144,2]
[334880160,1723626640419,-167.603257,0.00013144,2]
[334880162,1723626640429,-480.514814,0.00013144,2]
[334880164,1723626640439,-572.329449,0.00013144,2]
[334880166,1723626640450,-150.112233,0.000132,2]
[334880168,1723626640461,-307.226752,0.00013233,2]
[334880170,1723626640470,-157.338666,0.0001325,2]
[334880172,1723626640483,-150.0,0.00013293,2]
[334880174,1723626640492,-520.0,0.00013293,2]
[334880176,1723626640502,-1413.0,0.00013296,2]
[334880178,1723626640514,-150.112233,0.000133,2]
[334880180,1723626640524,-150.112233,0.000133,2]
[334880182,1723626640533,-150.112233,0.000133,2]
[334880184,1723626640542,-480.514814,0.00013304,2]
[334880187,1723626640553,-572.329449,0.00013304,2]
[334880189,1723626640563,-153.0,0.00013372,2]
[334880191,1723626640574,-153.0,0.00013372,2]
[334880193,1723626640586,-150.112233,0.000134,2]
[334880195,1723626640596,-183.652839,0.00013464,2]
[334880197,1723626640607,-157.338666,0.00013464,2]
[334880199,1723626640617,-167.603257,0.00013464,2]
[334880201,1723626640627,-480.514814,0.00013464,2]
[334880204,1723626640638,-572.329449,0.00013464,2]
[334880206,1723626640648,-154.76012181,0.00013499,2]
[334880208,1723626640659,-150.112233,0.000135,2]
[334880210,1723626640670,-494.87154082,0.00013519,2]
[334880212,1723626640680,-150.112233,0.000136,2]
[334880214,1723626640690,-150.112233,0.000136,2]
[334880216,1723626640700,-158.01490399,0.0001363,2]
[334880218,1723626640710,-161.57699842,0.00013644,2]
[334880220,1723626640720,-800.0,0.00013644,2]
[334880222,1723626640731,-259.8259034,0.00013644,2]
[334880224,1723626640741,-156.21134674,0.00013653,2]
[334880226,1723626640750,-800.0,0.00013654,2]
[334880228,1723626640762,-1014.25056727,0.00013696,2]
[334880230,1723626640772,-203.65312641,0.00013698,2]
[334880232,1723626640782,-307.89756851,0.00013698,2]
[334880234,1723626640792,-500.0,0.00013698,2]
[334880236,1723626640802,-311.20795245,0.00013698,2]
[334880238,1723626640812,-500.0,0.00013698,2]
[334880240,1723626640821,-500.0,0.00013698,2]
[334880242,1723626640831,-500.0,0.00013698,2]
[334880244,1723626640841,-500.0,0.00013698,2]
[334880246,1723626640850,-500.0,0.00013698,2]
[334880248,1723626640860,-500.0,0.00013698,2]
[334880250,1723626640870,-500.0,0.00013698,2]
[334880252,1723626640880,-500.0,0.00013698,2]
[334880254,1723626640891,-500.0,0.00013698,2]
[334880256,1723626640900,-500.0,0.00013698,2]
[334880258,1723626640910,-562.69044259,0.00013698,2]
[334880260,1723626640923,-500.0,0.00013698,2]
[334880262,1723626640932,-500.0,0.00013698,2]
[334880264,1723626640942,-500.0,0.00013698,2]
[334880266,1723626640951,-500.0,0.00013698,2]
[334880268,1723626640961,-500.0,0.00013698,2]
[334880270,1723626640971,-502.96358155,0.00013698,2]
[334880272,1723626640980,-500.0,0.00013698,2]
[334880274,1723626640990,-504.57589364,0.00013698,2]
[334880277,1723626640999,-500.0,0.00013698,2]
[334880279,1723626641009,-500.0,0.00013698,2]
[334880281,1723626641019,-500.95745913,0.00013698,2]
[334880283,1723626641028,-520.69781827,0.00013698,2]
[334880284,1723626641037,-442.65869458,0.00013698,2]
[334880286,1723626641046,-500.0,0.00013698,2]
[334880288,1723626641056,-500.0,0.00013698,2]
[334880290,1723626641065,-500.0,0.00013698,2]
[334880292,1723626641074,-161.26543339,0.00013698,2]
[334880294,1723626641084,-500.0,0.00013698,2]
[334880296,1723626641093,-500.0,0.00013698,2]
[334880298,1723626641102,-500.0,0.00013698,2]
[334880300,1723626641111,-500.0,0.00013698,2]
[334880302,1723626641120,-502.07300744,0.00013698,2]
[334880304,1723626641129,-500.0,0.00013698,2]
[334880306,1723626641139,-500.0,0.00013698,2]
[334880308,1723626641148,-500.0,0.00013698,2]
[334880310,1723626641158,-500.0,0.00013698,2]
[334880312,1723626641168,-500.0,0.00013698,2]
[334880315,1723626641179,-500.0,0.00013698,2]
[334880317,1723626641188,-500.0,0.00013698,2]
[334880319,1723626641197,-500.0,0.00013698,2]
[334880321,1723626641207,-500.0,0.00013698,2]
[334880323,1723626641217,-500.0,0.00013698,2]
[334880325,1723626641226,-283.74710251,0.00013698,2]
[334880327,1723626641235,-500.0,0.00013698,2]
[334880329,1723626641244,-500.0,0.00013698,2]
[334880331,1723626641254,-506.05029904,0.00013698,2]
[334880333,1723626641263,-500.0,0.00013698,2]
[334880335,1723626641273,-500.0,0.00013698,2]
[334880337,1723626641282,-501.88970458,0.00013698,2]
[334880339,1723626641292,-507.04552645,0.00013698,2]
[334880341,1723626641302,-500.0,0.00013698,2]
[334880343,1723626641312,-428.16434568,0.00013698,2]
[334880345,1723626641323,-500.0,0.00013698,2]
[334880347,1723626641334,-500.0,0.00013698,2]
[334880349,1723626641343,-500.0,0.00013698,2]
[334880351,1723626641353,-500.0,0.00013698,2]
[334880353,1723626641363,-500.0,0.00013698,2]
[334880355,1723626641372,-500.0,0.00013698,2]
[334880357,1723626641381,-500.0,0.00013698,2]
[334880359,1723626641391,-500.0,0.00013698,2]
[334880361,1723626641400,-500.0,0.00013698,2]
[334880364,1723626641413,-500.0,0.00013698,2]
[334880366,1723626641424,-500.0,0.00013698,2]
[334880368,1723626641434,-500.0,0.00013698,2]
[334880370,1723626641444,-500.0,0.00013698,2]
[334880372,1723626641455,-500.0,0.00013698,2]
[334880374,1723626641466,-501.29999261,0.00013698,2]
[334880376,1723626641476,-500.0,0.00013698,2]
[334880378,1723626641487,-500.0,0.00013698,2]
[334880381,1723626641501,-500.0,0.00013698,2]
[334880383,1723626641512,-502.03875762,0.00013698,2]
[334880385,1723626641523,-500.0,0.00013698,2]
[334880387,1723626641534,-500.0,0.00013698,2]
[334880389,1723626641544,-503.80537721,0.00013698,2]
[334880391,1723626641554,-500.0,0.00013698,2]
[334880393,1723626641565,-500.0,0.00013698,2]
[334880396,1723626641576,-500.0,0.00013698,2]
[334880398,1723626641586,-372.59642013,0.00013698,2]
[334880399,1723626641595,-500.0,0.00013698,2]
[334880400,1723626641605,-500.0,0.00013698,2]
[334880401,1723626641614,-503.25094454,0.00013698,2]
[334880402,1723626641624,-500.0,0.00013698,2]
[334880403,1723626641633,-502.49910985,0.00013698,2]
[334880404,1723626641642,-500.0,0.00013698,2]
[334880406,1723626641652,-500.0,0.00013698,2]
[334880408,1723626641662,-500.0,0.00013698,2]
[334880410,1723626641673,-509.04083032,0.00013698,2]
[334880412,1723626641683,-500.0,0.00013698,2]
[334880414,1723626641693,-481.5160861,0.00013698,2]
[334880416,1723626641702,-501.18268548,0.00013698,2]
[334880418,1723626641711,-187.55616866,0.00013698,2]
[334880420,1723626641721,-500.0,0.00013698,2]
[334880422,1723626641730,-500.0,0.00013698,2]
[334880424,1723626641740,-500.0,0.00013698,2]
[334880426,1723626641750,-500.0,0.00013698,2]
[334880428,1723626641760,-502.05587921,0.00013698,2]
[334880430,1723626641772,-504.86735596,0.00013698,2]
[334880432,1723626641781,-500.0,0.00013698,2]
[334880434,1723626641792,-500.0,0.00013698,2]
[334880436,1723626641802,-502.63818761,0.00013698,2]
[334880439,1723626641814,-500.0,0.00013698,2]
[334880441,1723626641825,-503.53536142,0.00013698,2]
[334880443,1723626641836,-500.0,0.00013698,2]
[334880445,1723626641846,-500.0,0.00013698,2]
[334880447,1723626641856,-500.0,0.00013698,2]
[334880449,1723626641865,-500.0,0.00013698,2]
[334880451,1723626641875,-500.0,0.00013698,2]
[334880453,1723626641884,-500.0,0.00013698,2]
[334880455,1723626641893,-500.0,0.00013698,2]
[334880457,1723626641903,-600.36434449,0.00013698,2]
[334880459,1723626641912,-500.0,0.00013698,2]
[334880461,1723626641924,-600.70829186,0.00013698,2]
[334880463,1723626641933,-500.0,0.00013698,2]
[334880465,1723626641943,-500.0,0.00013698,2]
[334880467,1723626641953,-501.27580743,0.00013698,2]
[334880469,1723626641962,-499.99882162,0.00013698,2]
[334880471,1723626641972,-500.0,0.00013698,2]
[334880473,1723626641982,-243.26631301,0.00013698,2]
[334880476,1723626641992,-502.7630188,0.00013698,2]
[334880478,1723626642002,-500.0,0.00013698,2]
[334880479,1723626642011,-500.0,0.00013698,2]